[Event "Titled Tuesday Blitz August 16 Early 2022"]
[White "Ajay, Karthikeyan"]
[Black "Munkhgal, Gombosuren"]
[WhiteFideId "35011685"]
[BlackFideId "4901266"]
[WhiteElo "2168"]
[BlackElo "2576"]
[Result "1-0"]
[Round "09"]
[TimeControl "180+1"]
[Date "2022.08.16"]
[WhiteClock "0:00:04"]
[BlackClock "0:00:24"]

1. e4 {[%clk 0:02:54]}  e6 {[%clk 0:03:00]} 2. d4 {[%clk 0:02:47]}  d5 {[%clk 0:03:00]} 3. Nc3 {[%clk 0:02:46]}  Bb4 {[%clk 0:03:00]} 4. Ne2 {[%clk 0:02:46]}  Nf6 {[%clk 0:02:58]} 5. e5 {[%clk 0:02:44]}  Nfd7 {[%clk 0:02:58]} 6. a3 {[%clk 0:02:43]}  Ba5 {[%clk 0:02:57]} 7. f4 {[%clk 0:02:31]}  Bb6 {[%clk 0:02:50]} 8. g3 {[%clk 0:02:30]}  c5 {[%clk 0:02:50]} 9. Be3 {[%clk 0:02:31]}  Nc6 {[%clk 0:02:49]} 10. Qd2 {[%clk 0:02:31]}  cxd4 {[%clk 0:02:49]} 11. Nxd4 {[%clk 0:02:31]}  Nxd4 {[%clk 0:02:50]} 12. Bxd4 {[%clk 0:02:32]}  Bxd4 {[%clk 0:02:50]} 13. Qxd4 {[%clk 0:02:33]}  Qb6 {[%clk 0:02:51]} 14. O-O-O {[%clk 0:02:32]}  Qxd4 {[%clk 0:02:51]} 15. Rxd4 {[%clk 0:02:33]}  a6 {[%clk 0:02:51]} 16. Bg2 {[%clk 0:02:25]}  b6 {[%clk 0:02:44]} 17. Re1 {[%clk 0:02:23]}  Bb7 {[%clk 0:02:43]} 18. h4 {[%clk 0:02:21]}  g6 {[%clk 0:02:36]} 19. h5 {[%clk 0:02:20]}  gxh5 {[%clk 0:02:32]} 20. Rh1 {[%clk 0:02:19]}  Rg8 {[%clk 0:02:32]} 21. Ne2 {[%clk 0:02:20]}  Ke7 {[%clk 0:02:27]} 22. Rxh5 {[%clk 0:02:20]}  Rg7 {[%clk 0:02:28]} 23. c4 {[%clk 0:01:53]}  Rc8 {[%clk 0:02:27]} 24. Kb1 {[%clk 0:01:52]}  Nc5 {[%clk 0:01:38]} 25. cxd5 {[%clk 0:01:50]}  Ke8 {[%clk 0:01:38]} 26. b4 {[%clk 0:01:38]}  Na4 {[%clk 0:01:34]} 27. d6 {[%clk 0:01:31]}  Bc6 {[%clk 0:01:24]} 28. Bxc6+ {[%clk 0:01:01]}  Rxc6 {[%clk 0:01:24]} 29. f5 {[%clk 0:00:54]}  Kd7 {[%clk 0:01:05]} 30. f6 {[%clk 0:00:53]}  Rg8 {[%clk 0:00:44]} 31. Rxh7 {[%clk 0:00:53]}  Rf8 {[%clk 0:00:44]} 32. g4 {[%clk 0:00:49]}  Nc3+ {[%clk 0:00:39]} 33. Nxc3 {[%clk 0:00:49]}  Rxc3 {[%clk 0:00:39]} 34. Kb2 {[%clk 0:00:48]}  Re3 {[%clk 0:00:36]} 35. g5 {[%clk 0:00:39]}  Re2+ {[%clk 0:00:31]} 36. Kb3 {[%clk 0:00:34]}  Re3+ {[%clk 0:00:32]} 37. Kc2 {[%clk 0:00:31]}  Rxe5 {[%clk 0:00:25]} 38. g6 {[%clk 0:00:32]}  Rf5 {[%clk 0:00:24]} 39. g7 {[%clk 0:00:16]}  Rc8+ {[%clk 0:00:25]} 40. Kb3 {[%clk 0:00:15]}  Rxf6 {[%clk 0:00:26]} 41. Rh8 {[%clk 0:00:04]}  Rg6 {[%clk 0:00:26]} 42. Rxc8 {[%clk 0:00:04]}  Kxc8 {[%clk 0:00:27]} 43. Rc4+ {[%clk 0:00:04]}  Kd8 {[%clk 0:00:26]} 44. Rc6 {[%clk 0:00:03]}  Rxg7 {[%clk 0:00:26]} 45. Rxb6 {[%clk 0:00:04]}  f5 {[%clk 0:00:26]} 46. Rb8+ {[%clk 0:00:02]}  Kd7 {[%clk 0:00:25]} 47. Rb7+ {[%clk 0:00:03]}  Kxd6 {[%clk 0:00:25]} 48. Rxg7 {[%clk 0:00:04]}  f4 {[%clk 0:00:24]} 49. Kc4 {[%clk 0:00:04]} 1-0


[Site "https://www.chess.com"]

[Event "Titled Tuesday Blitz August 16 Early 2022"]
[White "Atakhan, Abtin"]
[Black "Pakleza, Zbigniew"]
[WhiteFideId "22502203"]
[BlackFideId "1119290"]
[WhiteElo "2087"]
[BlackElo "2411"]
[Result "0-1"]
[Round "09"]
[TimeControl "180+1"]
[Date "2022.08.16"]
[WhiteClock "0:00:05"]
[BlackClock "0:00:08"]

1. d4 {[%clk 0:03:00]}  d6 {[%clk 0:02:57]} 2. Nf3 {[%clk 0:03:00]}  Bg4 {[%clk 0:02:56]} 3. g3 {[%clk 0:02:58]}  Bxf3 {[%clk 0:02:56]} 4. exf3 {[%clk 0:02:59]}  e6 {[%clk 0:02:55]} 5. Bg2 {[%clk 0:02:58]}  c6 {[%clk 0:02:55]} 6. f4 {[%clk 0:02:58]}  g6 {[%clk 0:02:52]} 7. O-O {[%clk 0:02:54]}  Bg7 {[%clk 0:02:48]} 8. c3 {[%clk 0:02:55]}  Ne7 {[%clk 0:02:46]} 9. Nd2 {[%clk 0:02:49]}  O-O {[%clk 0:02:46]} 10. Ne4 {[%clk 0:02:48]}  d5 {[%clk 0:02:37]} 11. Nd2 {[%clk 0:02:38]}  Nd7 {[%clk 0:02:35]} 12. Re1 {[%clk 0:02:38]}  Re8 {[%clk 0:02:26]} 13. h4 {[%clk 0:02:32]}  h5 {[%clk 0:02:20]} 14. Nf3 {[%clk 0:02:32]}  c5 {[%clk 0:02:17]} 15. dxc5 {[%clk 0:02:29]}  Nxc5 {[%clk 0:02:14]} 16. Ng5 {[%clk 0:02:27]}  Rc8 {[%clk 0:01:59]} 17. Be3 {[%clk 0:02:17]}  Nf5 {[%clk 0:01:59]} 18. Bxc5 {[%clk 0:02:11]}  Rxc5 {[%clk 0:01:57]} 19. Bh3 {[%clk 0:02:09]}  d4 {[%clk 0:01:33]} 20. Bxf5 {[%clk 0:01:43]}  Rxf5 {[%clk 0:01:33]} 21. c4 {[%clk 0:01:40]}  b5 {[%clk 0:01:19]} 22. Rc1 {[%clk 0:01:26]}  Qb6 {[%clk 0:01:14]} 23. Qd3 {[%clk 0:01:16]}  bxc4 {[%clk 0:01:11]} 24. Rxc4 {[%clk 0:01:17]}  Qxb2 {[%clk 0:01:05]} 25. Rb1 {[%clk 0:01:17]}  Qxa2 {[%clk 0:01:00]} 26. Rb7 {[%clk 0:01:05]}  a5 {[%clk 0:00:56]} 27. Rcc7 {[%clk 0:00:43]}  Rf8 {[%clk 0:00:56]} 28. Re7 {[%clk 0:00:39]}  Bh6 {[%clk 0:00:44]} 29. Qxd4 {[%clk 0:00:28]}  Bxg5 {[%clk 0:00:36]} 30. hxg5 {[%clk 0:00:29]}  Rd5 {[%clk 0:00:23]} 31. Qe4 {[%clk 0:00:11]}  Rd1+ {[%clk 0:00:19]} 32. Kg2 {[%clk 0:00:11]}  Qd5 {[%clk 0:00:19]} 33. f3 {[%clk 0:00:04]}  Qd2+ {[%clk 0:00:07]} 34. Kh3 {[%clk 0:00:05]}  Rh1# {[%clk 0:00:08]} 0-1


[Site "https://www.chess.com"]

[Event "Titled Tuesday Blitz August 16 Early 2022"]
[White "Baches Garcia, Guillermo"]
[Black "Rostovtsev, Dmitry"]
[WhiteFideId "2209764"]
[BlackFideId "34278320"]
[WhiteElo "2530"]
[BlackElo "2295"]
[Result "1/2-1/2"]
[Round "09"]
[TimeControl "180+1"]
[Date "2022.08.16"]
[WhiteClock "0:00:11"]
[BlackClock "0:00:46"]

1. e4 {[%clk 0:03:00]}  c5 {[%clk 0:02:59]} 2. Nf3 {[%clk 0:03:01]}  d6 {[%clk 0:02:59]} 3. d4 {[%clk 0:03:01]}  cxd4 {[%clk 0:02:59]} 4. Nxd4 {[%clk 0:03:02]}  Nf6 {[%clk 0:03:00]} 5. Nc3 {[%clk 0:03:02]}  Nc6 {[%clk 0:03:00]} 6. Nd5 {[%clk 0:03:02]}  e6 {[%clk 0:02:47]} 7. Nxf6+ {[%clk 0:03:01]}  Qxf6 {[%clk 0:02:46]} 8. Nb5 {[%clk 0:03:01]}  Qd8 {[%clk 0:02:46]} 9. c4 {[%clk 0:03:01]}  a6 {[%clk 0:02:43]} 10. Nc3 {[%clk 0:03:01]}  Be7 {[%clk 0:02:44]} 11. Be2 {[%clk 0:03:01]}  O-O {[%clk 0:02:43]} 12. O-O {[%clk 0:02:59]}  b6 {[%clk 0:02:41]} 13. Be3 {[%clk 0:03:00]}  Rb8 {[%clk 0:02:34]} 14. f4 {[%clk 0:02:52]}  Bd7 {[%clk 0:02:33]} 15. Qd2 {[%clk 0:02:38]}  Re8 {[%clk 0:02:26]} 16. Rab1 {[%clk 0:02:30]}  Bf8 {[%clk 0:02:18]} 17. b4 {[%clk 0:02:27]}  Qc7 {[%clk 0:02:07]} 18. Rfc1 {[%clk 0:02:24]}  Qa7 {[%clk 0:02:04]} 19. a4 {[%clk 0:02:15]}  Red8 {[%clk 0:01:51]} 20. a5 {[%clk 0:02:11]}  Qc7 {[%clk 0:01:51]} 21. axb6 {[%clk 0:02:05]}  Rxb6 {[%clk 0:01:52]} 22. Bxb6 {[%clk 0:02:05]}  Qxb6+ {[%clk 0:01:53]} 23. Kh1 {[%clk 0:02:04]}  Nxb4 {[%clk 0:01:50]} 24. Na2 {[%clk 0:01:45]}  a5 {[%clk 0:01:48]} 25. Nxb4 {[%clk 0:01:44]}  axb4 {[%clk 0:01:49]} 26. Rxb4 {[%clk 0:01:35]}  Qf2 {[%clk 0:01:49]} 27. Rf1 {[%clk 0:01:30]}  Qc5 {[%clk 0:01:47]} 28. Rfb1 {[%clk 0:01:16]}  Bc6 {[%clk 0:01:44]} 29. Bf3 {[%clk 0:00:55]}  d5 {[%clk 0:01:41]} 30. cxd5 {[%clk 0:00:43]}  exd5 {[%clk 0:01:42]} 31. exd5 {[%clk 0:00:36]}  Bxd5 {[%clk 0:01:41]} 32. Rb8 {[%clk 0:00:26]}  Rxb8 {[%clk 0:01:12]} 33. Rxb8 {[%clk 0:00:25]}  Bxf3 {[%clk 0:01:12]} 34. gxf3 {[%clk 0:00:23]}  Qc6 {[%clk 0:01:02]} 35. Kg2 {[%clk 0:00:17]}  Qc5 {[%clk 0:00:52]} 36. Qd8 {[%clk 0:00:13]}  Qc2+ {[%clk 0:00:47]} 37. Kg3 {[%clk 0:00:13]}  Qg6+ {[%clk 0:00:46]} 38. Kf2 {[%clk 0:00:13]}  Qc2+ {[%clk 0:00:46]} 39. Kg3 {[%clk 0:00:12]}  Qg6+ {[%clk 0:00:46]} 40. Kf2 {[%clk 0:00:12]}  Qc2+ {[%clk 0:00:46]} 41. Kg3 {[%clk 0:00:11]} 1/2-1/2


[Site "https://www.chess.com"]

[Event "Titled Tuesday Blitz August 16 Early 2022"]
[White "Begunov, Konstantin"]
[Black "Krsnik Cohar, Ivan Vihor"]
[WhiteFideId "4118510"]
[BlackFideId "14520044"]
[WhiteElo "2262"]
[BlackElo "2414"]
[Result "0-1"]
[Round "09"]
[TimeControl "180+1"]
[Date "2022.08.16"]
[WhiteClock "0:00:23"]
[BlackClock "0:00:09"]

1. d4 {[%clk 0:02:59]}  Nf6 {[%clk 0:02:57]} 2. c4 {[%clk 0:02:59]}  e6 {[%clk 0:02:57]} 3. Nf3 {[%clk 0:02:58]}  Bb4+ {[%clk 0:02:55]} 4. Nbd2 {[%clk 0:02:58]}  b6 {[%clk 0:02:55]} 5. a3 {[%clk 0:02:58]}  Be7 {[%clk 0:02:54]} 6. e4 {[%clk 0:02:58]}  d6 {[%clk 0:02:52]} 7. e5 {[%clk 0:02:58]}  dxe5 {[%clk 0:02:52]} 8. dxe5 {[%clk 0:02:59]}  Nfd7 {[%clk 0:02:45]} 9. Ne4 {[%clk 0:02:52]}  Bb7 {[%clk 0:02:27]} 10. Bd3 {[%clk 0:02:44]}  Nc5 {[%clk 0:02:12]} 11. Nxc5 {[%clk 0:02:44]}  Bxc5 {[%clk 0:02:13]} 12. O-O {[%clk 0:02:36]}  O-O {[%clk 0:02:08]} 13. b4 {[%clk 0:02:32]}  Be7 {[%clk 0:02:03]} 14. Qe2 {[%clk 0:02:31]}  a5 {[%clk 0:01:52]} 15. Rd1 {[%clk 0:02:30]}  Qe8 {[%clk 0:01:48]} 16. Ng5 {[%clk 0:02:10]}  h6 {[%clk 0:01:27]} 17. Nh7 {[%clk 0:02:05]}  Qc6 {[%clk 0:01:21]} 18. f3 {[%clk 0:01:55]}  axb4 {[%clk 0:01:02]} 19. Nxf8 {[%clk 0:01:52]}  Qc5+ {[%clk 0:00:31]} 20. Be3 {[%clk 0:01:05]}  Qxe5 {[%clk 0:00:31]} 21. f4 {[%clk 0:01:04]}  Qf6 {[%clk 0:00:24]} 22. Nh7 {[%clk 0:01:01]}  Qh4 {[%clk 0:00:19]} 23. axb4 {[%clk 0:00:56]}  Rxa1 {[%clk 0:00:18]} 24. Rxa1 {[%clk 0:00:57]}  Nc6 {[%clk 0:00:18]} 25. b5 {[%clk 0:00:41]}  Nb4 {[%clk 0:00:18]} 26. Ra7 {[%clk 0:00:36]}  Nxd3 {[%clk 0:00:18]} 27. Rxb7 {[%clk 0:00:36]}  Nxf4 {[%clk 0:00:16]} 28. Bxf4 {[%clk 0:00:26]}  Qxf4 {[%clk 0:00:11]} 29. Qd3 {[%clk 0:00:26]}  Bc5+ {[%clk 0:00:09]} 30. Kh1 {[%clk 0:00:23]}  Qc1+ {[%clk 0:00:09]} 31. Qd1 {[%clk 0:00:23]}  Qxd1# {[%clk 0:00:09]} 0-1


[Site "https://www.chess.com"]

[Event "Titled Tuesday Blitz August 16 Early 2022"]
[White "Bintang, Rasyid A. Hidayat"]
[Black "Tologon tegin, Semetei"]
[WhiteFideId "7105355"]
[BlackFideId "13800574"]
[WhiteElo "2409"]
[BlackElo "2174"]
[Result "0-1"]
[Round "09"]
[TimeControl "180+1"]
[Date "2022.08.16"]
[WhiteClock "0:01:37"]
[BlackClock "0:02:07"]

1. d4 {[%clk 0:02:59]}  b6 {[%clk 0:03:00]} 2. e4 {[%clk 0:02:56]}  Bb7 {[%clk 0:03:00]} 3. Nc3 {[%clk 0:02:57]}  e6 {[%clk 0:03:00]} 4. Bf4 {[%clk 0:02:58]}  Bb4 {[%clk 0:02:59]} 5. Qd3 {[%clk 0:02:54]}  Nf6 {[%clk 0:02:57]} 6. f3 {[%clk 0:02:54]}  d5 {[%clk 0:02:50]} 7. e5 {[%clk 0:02:50]}  Nfd7 {[%clk 0:02:48]} 8. a3 {[%clk 0:02:49]}  Ba6 {[%clk 0:02:47]} 9. Qe3 {[%clk 0:02:39]}  Bxf1 {[%clk 0:02:46]} 10. Kxf1 {[%clk 0:02:38]}  Bxc3 {[%clk 0:02:39]} 11. Qxc3 {[%clk 0:02:37]}  c5 {[%clk 0:02:39]} 12. Qe3 {[%clk 0:02:32]}  cxd4 {[%clk 0:02:35]} 13. Qxd4 {[%clk 0:02:33]}  Nc6 {[%clk 0:02:35]} 14. Qa4 {[%clk 0:02:32]}  Qc7 {[%clk 0:02:32]} 15. Re1 {[%clk 0:02:26]}  O-O {[%clk 0:02:31]} 16. c3 {[%clk 0:02:14]}  Ncxe5 {[%clk 0:02:30]} 17. Qc2 {[%clk 0:02:12]}  Qc4+ {[%clk 0:02:28]} 18. Ne2 {[%clk 0:02:08]}  Nd3 {[%clk 0:02:27]} 19. b3 {[%clk 0:02:01]}  Nxe1 {[%clk 0:02:27]} 20. Kxe1 {[%clk 0:01:54]}  Qc5 {[%clk 0:02:27]} 21. Qd3 {[%clk 0:01:45]}  Qxa3 {[%clk 0:02:22]} 22. b4 {[%clk 0:01:40]}  a5 {[%clk 0:02:15]} 23. bxa5 {[%clk 0:01:37]}  Rxa5 {[%clk 0:02:11]} 24. Bc1 {[%clk 0:01:37]}  Qa2 {[%clk 0:02:08]} 25. Kf2 {[%clk 0:01:37]}  Nc5 {[%clk 0:02:08]} 26. Qd4 {[%clk 0:01:37]}  Nb3 {[%clk 0:02:07]} 27. Be3 {[%clk 0:01:37]}  Nxd4 {[%clk 0:02:07]} 0-1


[Site "https://www.chess.com"]

[Event "Titled Tuesday Blitz August 16 Early 2022"]
[White "Bolanos, Fernando"]
[Black "Kostiukov, Alexandr"]
[WhiteFideId "3304094"]
[BlackFideId "14108100"]
[WhiteElo "2086"]
[BlackElo "2202"]
[Result "0-1"]
[Round "09"]
[TimeControl "180+2"]
[Date "2022.08.18"]
[WhiteClock "0:00:00"]
[BlackClock "0:00:00"]

1. e4 {[%clk 0:00:00]}  c5 {[%clk 0:00:00]} 2. Nf3 {[%clk 0:00:00]}  g6 {[%clk 0:00:00]} 3. d4 {[%clk 0:00:00]}  cxd4 {[%clk 0:00:00]} 4. Nxd4 {[%clk 0:00:00]}  Bg7 {[%clk 0:00:00]} 5. c4 {[%clk 0:00:00]}  Nc6 {[%clk 0:00:00]} 6. Be3 {[%clk 0:00:00]}  Nf6 {[%clk 0:00:00]} 7. Nc3 {[%clk 0:00:00]}  O-O {[%clk 0:00:00]} 8. Be2 {[%clk 0:00:00]}  d6 {[%clk 0:00:00]} 9. O-O {[%clk 0:00:00]}  Nxd4 {[%clk 0:00:00]} 10. Bxd4 {[%clk 0:00:00]}  Qa5 {[%clk 0:00:00]} 11. Rb1 {[%clk 0:00:00]}  Be6 {[%clk 0:00:00]} 12. Re1 {[%clk 0:00:00]}  Rfc8 {[%clk 0:00:00]} 13. b4 {[%clk 0:00:00]}  Qd8 {[%clk 0:00:00]} 14. Nd5 {[%clk 0:00:00]}  Nd7 {[%clk 0:00:00]} 15. Bxg7 {[%clk 0:00:00]}  Kxg7 {[%clk 0:00:00]} 16. Qd4+ {[%clk 0:00:00]}  f6 {[%clk 0:00:00]} 17. Nf4 {[%clk 0:00:00]}  Bf7 {[%clk 0:00:00]} 18. Rec1 {[%clk 0:00:00]}  e5 {[%clk 0:00:00]} 19. Qd5 {[%clk 0:00:00]}  Bxd5 {[%clk 0:00:00]} 0-1


[Site "https://www.chess.com"]

[Event "Titled Tuesday Blitz August 16 Early 2022"]
[White "Brodowski, Piotr"]
[Black "Papayan, Oleg"]
[WhiteFideId "1124480"]
[BlackFideId "4193911"]
[WhiteElo "2312"]
[BlackElo "2038"]
[Result "1-0"]
[Round "09"]
[TimeControl "180+2"]
[Date "2022.08.18"]
[WhiteClock "0:00:00"]
[BlackClock "0:00:00"]

1. e4 {[%clk 0:00:00]}  e5 {[%clk 0:00:00]} 2. Nf3 {[%clk 0:00:00]}  Nc6 {[%clk 0:00:00]} 3. Bb5 {[%clk 0:00:00]}  a6 {[%clk 0:00:00]} 4. Ba4 {[%clk 0:00:00]}  Nf6 {[%clk 0:00:00]} 5. O-O {[%clk 0:00:00]}  b5 {[%clk 0:00:00]} 6. Bb3 {[%clk 0:00:00]}  Bc5 {[%clk 0:00:00]} 7. d3 {[%clk 0:00:00]}  d6 {[%clk 0:00:00]} 8. h3 {[%clk 0:00:00]}  O-O {[%clk 0:00:00]} 9. a4 {[%clk 0:00:00]}  Bb7 {[%clk 0:00:00]} 10. Bg5 {[%clk 0:00:00]}  h6 {[%clk 0:00:00]} 11. Bh4 {[%clk 0:00:00]}  g5 {[%clk 0:00:00]} 12. Bg3 {[%clk 0:00:00]}  Nh5 {[%clk 0:00:00]} 13. Bh2 {[%clk 0:00:00]}  Nf4 {[%clk 0:00:00]} 14. Nc3 {[%clk 0:00:00]}  Ne7 {[%clk 0:00:00]} 15. axb5 {[%clk 0:00:00]}  axb5 {[%clk 0:00:00]} 16. Rxa8 {[%clk 0:00:00]}  Bxa8 {[%clk 0:00:00]} 17. Nxb5 {[%clk 0:00:00]}  Neg6 {[%clk 0:00:00]} 18. Nc3 {[%clk 0:00:00]}  Kg7 {[%clk 0:00:00]} 19. Ne2 {[%clk 0:00:00]}  f5 {[%clk 0:00:00]} 20. Ng3 {[%clk 0:00:00]}  fxe4 {[%clk 0:00:00]} 21. dxe4 {[%clk 0:00:00]}  Nxg2 {[%clk 0:00:00]} 22. Kxg2 {[%clk 0:00:00]}  Nf4+ {[%clk 0:00:00]} 23. Kh1 {[%clk 0:00:00]}  Nxh3 {[%clk 0:00:00]} 24. Nf5+ {[%clk 0:00:00]}  Rxf5 {[%clk 0:00:00]} 25. exf5 {[%clk 0:00:00]}  g4 {[%clk 0:00:00]} 26. Bd5 {[%clk 0:00:00]}  Nxf2+ {[%clk 0:00:00]} 27. Rxf2 {[%clk 0:00:00]}  Bxf2 {[%clk 0:00:00]} 28. Nxe5 {[%clk 0:00:00]}  dxe5 {[%clk 0:00:00]} 29. Qxg4+ {[%clk 0:00:00]}  Qg5 {[%clk 0:00:00]} 30. Bxe5+ {[%clk 0:00:00]}  Kf8 {[%clk 0:00:00]} 31. Qb4+ {[%clk 0:00:00]}  Ke8 {[%clk 0:00:00]} 32. Qb8+ {[%clk 0:00:00]}  Qd8 {[%clk 0:00:00]} 33. Qxd8+ {[%clk 0:00:00]}  Kxd8 {[%clk 0:00:00]} 34. Bxa8 {[%clk 0:00:00]} 1-0


[Site "https://www.chess.com"]

[Event "Titled Tuesday Blitz August 16 Early 2022"]
[White "Buscar, Michael"]
[Black "Fiorito, Joaquin"]
[WhiteFideId "2603616"]
[BlackFideId "180173"]
[WhiteElo "2010"]
[BlackElo "1758"]
[Result "0-1"]
[Round "09"]
[TimeControl "180+2"]
[Date "2022.08.18"]
[WhiteClock "0:00:00"]
[BlackClock "0:00:00"]

1. Nf3 {[%clk 0:00:00]}  d5 {[%clk 0:00:00]} 2. g3 {[%clk 0:00:00]}  Nf6 {[%clk 0:00:00]} 3. Bg2 {[%clk 0:00:00]}  Bf5 {[%clk 0:00:00]} 4. O-O {[%clk 0:00:00]}  e6 {[%clk 0:00:00]} 5. d3 {[%clk 0:00:00]}  Be7 {[%clk 0:00:00]} 6. Nbd2 {[%clk 0:00:00]}  h6 {[%clk 0:00:00]} 7. c4 {[%clk 0:00:00]}  c6 {[%clk 0:00:00]} 8. a3 {[%clk 0:00:00]}  a5 {[%clk 0:00:00]} 9. b3 {[%clk 0:00:00]}  O-O {[%clk 0:00:00]} 10. Bb2 {[%clk 0:00:00]}  Nbd7 {[%clk 0:00:00]} 11. Ne5 {[%clk 0:00:00]}  Bh7 {[%clk 0:00:00]} 12. Ndf3 {[%clk 0:00:00]}  Bd6 {[%clk 0:00:00]} 13. cxd5 {[%clk 0:00:00]}  exd5 {[%clk 0:00:00]} 14. Nxd7 {[%clk 0:00:00]}  Nxd7 {[%clk 0:00:00]} 15. Qd2 {[%clk 0:00:00]}  Re8 {[%clk 0:00:00]} 16. Qc3 {[%clk 0:00:00]}  Ne5 {[%clk 0:00:00]} 17. b4 {[%clk 0:00:00]}  Qf6 {[%clk 0:00:00]} 18. bxa5 {[%clk 0:00:00]}  Nxf3+ {[%clk 0:00:00]} 19. Bxf3 {[%clk 0:00:00]}  Be5 {[%clk 0:00:00]} 20. d4 {[%clk 0:00:00]}  Bc7 {[%clk 0:00:00]} 21. Qb3 {[%clk 0:00:00]}  Bxa5 {[%clk 0:00:00]} 22. Bc3 {[%clk 0:00:00]}  Bxc3 {[%clk 0:00:00]} 23. Qxc3 {[%clk 0:00:00]}  Ra4 {[%clk 0:00:00]} 24. Qb3 {[%clk 0:00:00]}  b5 {[%clk 0:00:00]} 25. Rac1 {[%clk 0:00:00]}  Rea8 {[%clk 0:00:00]} 26. Rc3 {[%clk 0:00:00]}  Rxa3 {[%clk 0:00:00]} 27. Qxa3 {[%clk 0:00:00]}  Rxa3 {[%clk 0:00:00]} 28. Rxa3 {[%clk 0:00:00]}  Bf5 {[%clk 0:00:00]} 29. Rc1 {[%clk 0:00:00]}  Bh3 {[%clk 0:00:00]} 30. Ra6 {[%clk 0:00:00]}  Qxd4 {[%clk 0:00:00]} 31. Raxc6 {[%clk 0:00:00]}  b4 {[%clk 0:00:00]} 32. e3 {[%clk 0:00:00]}  Qd3 {[%clk 0:00:00]} 33. Rd1 {[%clk 0:00:00]}  Qa3 {[%clk 0:00:00]} 34. Bxd5 {[%clk 0:00:00]}  b3 {[%clk 0:00:00]} 35. Rb6 {[%clk 0:00:00]}  b2 {[%clk 0:00:00]} 36. Rb1 {[%clk 0:00:00]}  h5 {[%clk 0:00:00]} 37. Rb8+ {[%clk 0:00:00]}  Kh7 {[%clk 0:00:00]} 38. R8xb2 {[%clk 0:00:00]}  Bf5 {[%clk 0:00:00]} 39. Ra2 {[%clk 0:00:00]}  Qd3 {[%clk 0:00:00]} 40. Re1 {[%clk 0:00:00]}  Qxd5 {[%clk 0:00:00]} 41. Rae2 {[%clk 0:00:00]}  Qf3 {[%clk 0:00:00]} 42. e4 {[%clk 0:00:00]}  Bh3 {[%clk 0:00:00]} 0-1


[Site "https://www.chess.com"]